Workbook

Sheet 32 руб
D1: Акционерное общество
C2: Департамент продовольствия и социального питания г.Казани
E3: МЕНЮ
B4: 1 - ая неделя
E5: ТЮЛЯЧИНСКИЕ ШКОЛЫ
B7: Наименование блюд | F7: Выход | G7: Белки | H7: Жиры | I7: Угл-ды | J7: Ккал
B8: ПОНЕДЕЛЬНИК
B9: ЗАВТРАК
A10: Т.4/2004 | B10: Каша гречневая молочная | F10: 150 | G10: 6.83 | H10: 3.05 | I10: 26.27 | J10: 160.00
A11: 684,685/2004 | B11: Чай с сахаром | F11: 200/15 | G11: 0.2 | I11: 13.7 | J11: 53.00
B12: Хлеб белый 1с | F12: 25 | G12: 2 | H12: 0.8 | I12: 12.5 | J12: 62.00
B13: Итого: | G13: =SUM(G10:G12) -> 9.03 | H13: 3.85 | I13: 52.47 | J13: 275.00
B14: Обед
A15: 133/2004 | B15: Суп картофельный | F15: 250 | G15: 2.75 | H15: 3.00 | I15: 20.5 | J15: 121.25
A16: 413/2004 | B16: Сосиски отварные | F16: 1шт/50 | G16: 4.90 | H16: 8.40 | I16: 0.4 | J16: 97.00
A17: 515/2004 | B17: Гороховое пюре | F17: 160 | G17: 17.2 | H17: 5.2 | I17: 36.1 | J17: 261.00
A18: 684,685/2004 | B18: Чай с сахаром | F18: 200/15 | G18: 0.2 | I18: 13.7 | J18: 53.00
B19: Хлеб сельский | F19: 20 | G19: 1.3 | H19: 0.2 | I19: 7 | J19: 41.00
B20: Итого: | G20: =SUM(G15:G19) -> 26.31 | H20: 16.82 | I20: 77.71 | J20: 573.25
B21: Всего : | G21: =G13+G20 -> 35.34 | H21: =H13+H20 -> 20.67 | I21: 130.18 | J21: 848.25
B23: ВТОРНИК
B24: ЗАВТРАК
A25: Т.4/2004 | B25: Каша пшённая молочная | F25: 150 | G25: 6.41 | H25: 3.05 | I25: 29.81 | J25: 172.00
A26: 685/2004 | B26: Чай с сахаром | F26: 200/15 | G26: 0.2 | I26: 13.7 | J26: 53.00
B27: Хлеб сельский | F27: 20 | G27: 1.3 | H27: 0.2 | I27: 7 | J27: 41.00
B28: Итого: | G28: =SUM(G25:G27) -> 7.91 | H28: 3.25 | I28: 50.51 | J28: 266.00
B29: Обед
A30: 135/2004 | B30: Борщ со свеж.капустой, картофелем | F30: 200 | G30: 1.30 | H30: 3.20 | I30: 9.3 | J30: 71.00
A31: 510/2004 | B31: Каша перловая вязкая | F31: 150 | G31: 4.35 | H31: 5.25 | I31: 34.4 | J31: 202.00
A32: Акт 2017 | B32: Фрикадельки из птицы в соусе п/ф | F32: 44/40 | G32: 6.61 | H32: 5.24 | I32: 6.5 | J32: 99.90
A33: 684,685/2004 | B33: Чай с сахаром | F33: 200/15 | G33: 0.2 | I33: 13.7 | J33: 53.00
B34: Хлеб сельский | F34: 20 | G34: 1.3 | H34: 0.2 | I34: 7 | J34: 41.00
B35: Итого: | G35: =SUM(G30:G34) -> 13.76 | H35: 13.89 | I35: 70.89 | J35: 466.90
B36: Всего : | G36: =G28+G35 -> 21.67 | H36: =H28+H35 -> 17.14 | I36: 121.4 | J36: 732.9
B39: СРЕДА
B40: ЗАВТРАК
A41: Т.4/2004 | B41: Каша геркулесовая молочная | F41: 150 | G41: 6.24 | H41: 3.92 | I41: 25.52 | J41: 162.00
A42: 685/2004 | B42: Чай с сахаром | F42: 200/15 | G42: 0.2 | I42: 13.7 | J42: 53.00
B43: Хлеб белый 1с | F43: 25 | G43: 2 | H43: 0.8 | I43: 12.5 | J43: 62.00
B44: Итого: | G44: =SUM(G41:G43) -> 8.44 | H44: =SUM(H41:H43) -> 4.72 | I44: =SUM(I41:I43) -> 51.72 | J44: =SUM(J41:J43) -> 277.00
B45: Обед
A46: 243/2004 | B46: Щи из свежей капусты с картофелем | F46: 200 | G46: 1.5 | H46: 3.3 | I46: 5.6 | J46: 57.00
A47: Акт 2016г | B47: Соус болоньезе 60гр | F47: 60 | G47: 5.8 | H47: 4.3 | I47: 3.9 | J47: 67.80
A48: 332,516/2004 | B48: Макаронные изделия (группы А) отварные | F48: 150 | G48: 5.75 | H48: 4.6 | I48: 34.95 | J48: 224.00
A49: 648/2004 | B49: Кисель | F49: 200 | I49: 10.0 | J49: 119.00
B50: Хлеб сельский | F50: 20 | G50: 1.3 | H50: 0.2 | I50: 7 | J50: 41.00
B51: Итого: | G51: =SUM(G45:G50) -> 14.36 | H51: 12.35 | I51: 61.42 | J51: 508.80
B52: Всего : | G52: =G44+G51 -> 22.8 | H52: =H44+H51 -> 17.07 | I52: 113.14 | J52: 785.8
B54: ЧЕТВЕРГ
B55: ЗАВТРАК
A56: Т.4/2004 | B56: Каша пшеничная молочная | F56: 150 | G56: 3.63 | H56: 1.52 | I56: 17.68 | J56: 99.00
A57: 685/2004 | B57: Чай с сахаром | F57: 200/15 | G57: 0.2 | I57: 13.7 | J57: 53.00
B58: Хлеб белый 1с | F58: 20 | G58: 1.6 | H58: 0.64 | I58: 10 | J58: 49.60
B59: Итого: | G59: =SUM(G56:G58) -> 5.43 | H59: =SUM(H56:H58) -> 2.16 | I59: =SUM(I56:I58) -> 41.38 | J59: =SUM(J56:J58) -> 201.60
B60: Обед
A61: 124/2004 | B61: Суп-лапша домашняя с картофелем | F61: 200 | G61: 2.3 | H61: 2.2 | I61: 14.3 | J61: 88.00
A62: 462/2004 | B62: Тефтели из говядины в соусе (1 вариант) | F62: 40/40 | G62: 6.89 | H62: 4.23 | I62: 5.7 | J62: 88.60
A63: Т.4/2004 | B63: Каша гречневая рассыпчатая | F63: 150 | G63: 8.77 | H63: 6.05 | I63: 39.61 | J63: 248.33
A64: 684,685/2004 | B64: Чай с сахаром | F64: 200/15 | G64: 0.2 | I64: 13.7 | J64: 53.00
B65: Хлеб сельский | F65: 25 | G65: 1.80 | H65: 0.30 | I65: 9.80 | J65: 58.00
B66: Итого: | G66: =SUM(G61:G65) -> 19.96 | H66: 12.78 | I66: 83.07 | J66: 535.93
B67: Всего : | G67: =G59+G66 -> 25.39 | H67: =H59+H66 -> 14.94 | I67: 124.45 | J67: 737.53
B69: ПЯТНИЦА
B70: ЗАВТРАК
A71: Т.4/2004 | B71: Каша кукурузная молочная | F71: 150 | G71: 3.63 | H71: 1.52 | I71: 17.68 | J71: 99.00
A72: 685/2004 | B72: Чай с сахаром | F72: 200/15 | G72: 0.2 | I72: 13.7 | J72: 53.00
B73: Хлеб белый 1с | F73: 25 | G73: 2 | H73: 0.8 | I73: 12.5 | J73: 62.00
B74: Итого: | G74: =SUM(G71:G73) -> 5.83 | H74: 2.32 | I74: 43.88 | J74: 214.00
B75: Обед
A76: 135/2004 | B76: Борщ со свеж.капустой, картофелем | F76: 200 | G76: 1.30 | H76: 3.20 | I76: 9.3 | J76: 71.00
A77: 413/2004 | B77: Сосиски отварные | F77: 1шт/50 | G77: 4.90 | H77: 8.40 | I77: 0.4 | J77: 97.00
A78: 541/2004 | B78: Рагу овощное | F78: 160 | G78: 3.5 | H78: 7.8 | I78: 19.7 | J78: 163.20
A79: 684,685/2004 | B79: Чай с сахаром | F79: 200/15 | G79: 0.2 | I79: 13.7 | J79: 53.00
B80: Хлеб сельский | F80: 30 | G80: 1.80 | H80: 0.30 | I80: 9.80 | J80: 58.00
B81: Итого: | G81: =SUM(G76:G80) -> 11.67 | H81: =SUM(H76:H80) -> 19.70 | I81: =SUM(I76:I80) -> 52.93 | J81: =SUM(J76:J80) -> 442.20
B82: Всего : | G82: =G74+G81 -> 17.5 | H82: =H74+H81 -> 22.02 | I82: =I74+I81 -> 96.81 | J82: =J74+J81 -> 656.2
B84: СУББОТА
B85: ЗАВТРАК
A86: Т.4/2004 | B86: Каша геркулесовая молочная | F86: 150 | G86: 6.24 | H86: 3.92 | I86: 25.52 | J86: 162.00
A87: 685/2004 | B87: Чай с сахаром | F87: 200/15 | G87: 0.2 | I87: 13.7 | J87: 53.00
B88: Хлеб белый 1с | F88: 20 | G88: 1.6 | H88: 0.64 | I88: 10 | J88: 49.60
B89: Итого: | G89: =SUM(G86:G88) -> 8.04 | H89: 4.56 | I89: 49.22 | J89: 264.60
B90: Обед
A91: 135/2004 | B91: Суп из овощей | F91: 200 | G91: 1.5 | H91: 3.3 | I91: 5.6 | J91: 57.00
A92: 397,593/2004 | B92: Фрикадельки из горбуши в томат соусе | F92: 40/40 | G92: 8.67 | H92: 4.16 | I92: 5.92 | J92: 96.00
A93: 511/2004 | B93: Рис отварной | F93: 150 | G93: 8.00 | H93: 4.90 | I93: 37.97 | J93: 227.00
A94: 684,685/2004 | B94: Чай с сахаром | F94: 200/15 | G94: 0.2 | I94: 13.7 | J94: 53.00
B95: Хлеб сельский | F95: 20 | G95: 1.3 | H95: 0.2 | I95: 7 | J95: 41.00
B96: Итого: | G96: =SUM(G91:G95) -> 19.67 | H96: 12.56 | I96: 70.19 | J96: 474.00
B97: Всего : | G97: =G89+G96 -> 27.71 | H97: =H89+H96 -> 17.12 | I97: 119.41 | J97: 738.6
